fUSD/lending_fUSD_20250113
["ID","MTS","AMOUNT","RATE_DAILY","PERIOD"]
[348720768,1736750655912,4026.03,8.547e-05,2]
[348720770,1736750680224,500.0,0.0001961,120]
[348720771,1736750793053,1000.0,8.474e-05,2]
[348720772,1736750889827,232.8,8.437e-05,2]
[348720777,1736751009348,250.0,8.422e-05,2]
[348720792,1736751031855,-891.02,9.167e-05,2]
[348720793,1736751031865,-300.0,9.168e-05,2]
[348720794,1736751031875,-5646.29878239,9.169e-05,2]
[348720795,1736751031895,-3877.92506257,9.169e-05,2]
[348720796,1736751031905,-891.02,9.17e-05,2]
[348720797,1736751031914,-891.02,9.172e-05,2]
[348720798,1736751031924,-752.90555418,9.174e-05,2]
[348720803,1736751032013,-138.11444582,9.174e-05,2]
[348720804,1736751032023,-813.83781829,9.177e-05,2]
[348720805,1736751032034,-77.18218171,9.177e-05,2]
[348720806,1736751032044,-276.67604829,9.179e-05,2]
[348720807,1736751032055,-614.34395171,9.179e-05,2]
[348720808,1736751032064,-385.65604829,9.182e-05,2]
[348720809,1736751032075,-505.36395171,9.182e-05,2]
[348720810,1736751032084,-891.02,9.184e-05,2]
[348720811,1736751032094,-891.02,9.187e-05,2]
[348720812,1736751032103,-299.99,9.187e-05,2]
[348720813,1736751032112,-999.99,9.187e-05,2]
[348720814,1736751032121,-150.99,9.187e-05,2]
[348720815,1736751032131,-570.22136769,9.187e-05,2]
[348720816,1736751032142,-377.70571341,9.187e-05,2]
[348720817,1736751032153,-592.1329189,9.187e-05,2]
[348720818,1736751032162,-5678.1279771,9.188e-05,2]
[348720819,1736751032173,-3418.0420229,9.188e-05,2]
[348720820,1736751032183,-891.02,9.189e-05,2]
[348720821,1736751032192,-891.02,9.191e-05,2]
[348720822,1736751032201,-891.02,9.194e-05,2]
[348720823,1736751032211,-891.02,9.196e-05,2]
[348720824,1736751032220,-891.02,9.199e-05,2]
[348720825,1736751032229,-891.02,9.201e-05,2]
[348720826,1736751032239,-891.02,9.203e-05,2]
[348720827,1736751032248,-891.02,9.206e-05,2]
[348720828,1736751032260,-891.02,9.208e-05,2]
[348720829,1736751032270,-891.02,9.211e-05,2]
[348720830,1736751032279,-891.02,9.213e-05,2]
[348720831,1736751032289,-150.0,9.424e-05,2]
[348720832,1736751032299,-675.7379771,9.425e-05,2]
[348720833,1736751032311,-776.4420229,9.425e-05,2]
[348720834,1736751032321,-1000.0,9.533e-05,2]
[348720835,1736751032330,-950.65,9.706e-05,2]
[348720836,1736751032340,-311.6239,9.798e-05,2]
[348720837,1736751032351,-534.2499,9.799e-05,2]
[348720838,1736751032361,-124.13507691,9.799e-05,2]
[348720839,1736751032373,-273.8085985,9.799e-05,2]
[348720840,1736751032385,-929.80792459,9.799e-05,2]
[348720841,1736751032399,-867.0423,9.8e-05,2]
[348720842,1736751032409,-440.24,9.836e-05,2]
[348720843,1736751032418,-814.0,9.898e-05,2]
[348720844,1736751032429,-500.0,9.898e-05,2]
[348720845,1736751032439,-500.0,9.898e-05,2]
[348720846,1736751032449,-500.0,9.898e-05,2]
[348720847,1736751032459,-500.0,9.898e-05,2]
[348720848,1736751032471,-500.0,9.898e-05,2]
[348720849,1736751032481,-500.0,9.898e-05,2]
[348720850,1736751032490,-500.0,9.898e-05,2]
[348720851,1736751032499,-500.0,9.898e-05,2]
[348720852,1736751032514,-501.23001669,9.898e-05,2]
[348720853,1736751032523,-500.0,9.898e-05,2]
[348720854,1736751032533,-688.03,9.898e-05,2]
[348720855,1736751032542,-500.0,9.898e-05,2]
[348720856,1736751032551,-500.0,9.898e-05,2]
[348720857,1736751032560,-361.47376988,9.898e-05,2]
[348720858,1736751032569,-500.0,9.898e-05,2]
[348720859,1736751032579,-500.0,9.898e-05,2]
[348720860,1736751032588,-500.0,9.898e-05,2]
[348720861,1736751032597,-500.0,9.898e-05,2]
[348720862,1736751032606,-501.15925114,9.898e-05,2]
[348720863,1736751032615,-500.0,9.898e-05,2]
[348720864,1736751032624,-500.0,9.898e-05,2]
[348720865,1736751032633,-500.0,9.898e-05,2]
[348720866,1736751032643,-160.60321796,9.898e-05,2]
[348720867,1736751032651,-507.71328639,9.898e-05,2]
[348720868,1736751032660,-500.0,9.898e-05,2]
[348720869,1736751032669,-500.0,9.898e-05,2]
[348720870,1736751032678,-500.0,9.898e-05,2]
[348720871,1736751032687,-500.0,9.898e-05,2]
[348720872,1736751032697,-500.0,9.898e-05,2]
[348720873,1736751032706,-507.86807169,9.898e-05,2]
[348720874,1736751032715,-500.0,9.898e-05,2]
[348720875,1736751032725,-500.0,9.898e-05,2]
[348720876,1736751032734,-515.90759764,9.898e-05,2]
[348720877,1736751032743,-500.0,9.898e-05,2]
[348720878,1736751032752,-510.44701922,9.898e-05,2]
[348720879,1736751032762,-500.0,9.898e-05,2]
[348720880,1736751032771,-500.0,9.898e-05,2]
[348720881,1736751032780,-500.0,9.898e-05,2]
[348720882,1736751032789,-479.63581557,9.898e-05,2]
[348720883,1736751032799,-503.36453093,9.898e-05,2]
[348720884,1736751032808,-619.35,9.898e-05,2]
[348720885,1736751032817,-510.32905855,9.898e-05,2]
[348720886,1736751032826,-500.0,9.898e-05,2]
[348720887,1736751032835,-500.0,9.898e-05,2]
[348720888,1736751032843,-500.0,9.898e-05,2]
[348720889,1736751032852,-635.35805871,9.898e-05,2]
[348720890,1736751032861,-500.0,9.898e-05,2]
[348720891,1736751032871,-511.19986976,9.898e-05,2]
[348720892,1736751032879,-495.04422949,9.898e-05,2]
[348720893,1736751032888,-500.0,9.898e-05,2]
[348720894,1736751032897,-1004.66,9.898e-05,2]
[348720895,1736751032906,-500.7522919,9.898e-05,2]
[348720896,1736751032915,-500.0,9.898e-05,2]
[348720897,1736751032924,-500.0,9.898e-05,2]
[348720898,1736751032933,-500.0,9.898e-05,2]
[348720899,1736751032942,-500.0,9.898e-05,2]
[348720900,1736751032951,-500.0,9.898e-05,2]
[348720901,1736751032960,-500.0,9.898e-05,2]
[348720902,1736751032969,-3750.23,9.898e-05,2]
[348720903,1736751032978,-504.33834122,9.898e-05,2]
[348720904,1736751032987,-933.27,9.898e-05,2]
[348720905,1736751032996,-500.0,9.898e-05,2]
[348720906,1736751033010,-500.0,9.898e-05,2]
[348720907,1736751033019,-500.0,9.898e-05,2]
[348720908,1736751033030,-500.0,9.898e-05,2]
[348720909,1736751033040,-500.0,9.898e-05,2]
[348720910,1736751033050,-508.38727313,9.898e-05,2]
[348720911,1736751033060,-500.0,9.898e-05,2]
[348720912,1736751033070,-511.412713,9.898e-05,2]
[348720913,1736751033079,-317.3896877,9.898e-05,2]
[348720914,1736751033092,-182.6103123,9.898e-05,2]
[348720915,1736751033102,-506.70169105,9.898e-05,2]
[348720916,1736751033111,-500.0,9.898e-05,2]
[348720917,1736751033121,-500.0,9.898e-05,2]
[348720918,1736751033131,-502.43406106,9.898e-05,2]
[348720919,1736751033140,-500.0,9.898e-05,2]
[348720920,1736751033150,-504.89477737,9.898e-05,2]
[348720921,1736751033160,-500.0,9.898e-05,2]
[348720922,1736751033170,-500.0,9.898e-05,2]
[348720923,1736751033179,-500.0,9.898e-05,2]
[348720924,1736751033190,-500.0,9.898e-05,2]
[348720925,1736751033200,-502.76797211,9.898e-05,2]
[348720926,1736751033209,-500.0,9.898e-05,2]
[348720927,1736751033219,-500.0,9.898e-05,2]
[348720928,1736751033229,-500.0,9.898e-05,2]
[348720929,1736751033238,-501.08349705,9.898e-05,2]
[348720930,1736751033248,-500.0,9.898e-05,2]
[348720931,1736751033262,-500.0,9.898e-05,2]
[348720932,1736751033272,-500.0,9.898e-05,2]
[348720933,1736751033282,-500.0,9.898e-05,2]
[348720934,1736751033292,-500.0,9.898e-05,2]
[348720935,1736751033302,-435.79275956,9.898e-05,2]
[348720936,1736751035535,-281.98724044,9.898e-05,2]
[348720937,1736751035545,-500.0,9.898e-05,2]
[348720938,1736751035554,-500.0,9.898e-05,2]
[348720939,1736751035564,-500.0,9.898e-05,2]
[348720940,1736751035575,-500.0,9.898e-05,2]
[348720941,1736751035584,-598.19315747,9.898e-05,2]
[348720942,1736751035593,-500.0,9.898e-05,2]
[348720943,1736751035603,-354.74790872,9.898e-05,2]
[348720944,1736751035614,-1322.22029579,9.898e-05,2]
[348720945,1736751035625,-1070.7,9.898e-05,2]
[348720947,1736751035701,-940.4485,9.898e-05,2]
[348720955,1736751037856,-200.0,9.849e-05,2]
[348720956,1736751037866,-1692.04329549,9.898e-05,2]
[348720957,1736751037875,-500.0,9.898e-05,2]
[348720958,1736751037884,-500.0,9.898e-05,2]
[348720959,1736751037894,-500.0,9.898e-05,2]
[348720960,1736751037904,-500.0,9.898e-05,2]
[348720961,1736751037914,-500.0,9.898e-05,2]
[348720962,1736751037923,-500.0,9.898e-05,2]
[348720963,1736751037932,-1354.2,9.898e-05,2]
[348720964,1736751037941,-500.0,9.898e-05,2]
[348720965,1736751037951,-88.21919684,9.898e-05,2]
[348720966,1736751037962,-278.64561407,9.898e-05,2]
[348720967,1736751037973,-133.13518909,9.898e-05,2]
[348720968,1736751037983,-500.0,9.898e-05,2]
[348720969,1736751037992,-500.0,9.898e-05,2]
[348720970,1736751038002,-500.0,9.898e-05,2]
[348720971,1736751038012,-500.0,9.898e-05,2]
[348720972,1736751038022,-500.0,9.898e-05,2]
[348720973,1736751038033,-500.0,9.898e-05,2]
[348720974,1736751038042,-504.64060006,9.898e-05,2]
[348720975,1736751038051,-504.55102955,9.898e-05,2]
[348720976,1736751038061,-500.0,9.898e-05,2]
[348720977,1736751038070,-2207.11,9.898e-05,2]
[348720978,1736751038079,-500.0,9.898e-05,2]
[348720979,1736751038088,-500.0,9.898e-05,2]
[348720980,1736751038097,-613.19,9.898e-05,2]
[348720981,1736751038106,-500.0,9.898e-05,2]
[348720982,1736751038116,-305.76278006,9.898e-05,2]
[348720983,1736751038125,-612.96845964,9.898e-05,2]
[348720985,1736751038134,-404.77501739,9.898e-05,2]
[348720987,1736751038143,-500.0,9.898e-05,2]
[348720989,1736751038154,-500.0,9.898e-05,2]
[348720991,1736751038163,-1038.41,9.898e-05,2]
[348720993,1736751038172,-504.0589438,9.898e-05,2]
[348720995,1736751038182,-500.0,9.898e-05,2]
[348720997,1736751038191,-500.0,9.898e-05,2]
[348720999,1736751038200,-1066.29,9.898e-05,2]
[348721000,1736751038210,-532.57,9.898e-05,2]
[348721002,1736751038220,-500.0,9.898e-05,2]
[348721004,1736751038230,-503.56502583,9.898e-05,2]
[348721006,1736751038239,-500.0,9.898e-05,2]
[348721008,1736751038249,-500.0,9.898e-05,2]
[348721009,1736751038258,-500.0,9.898e-05,2]
[348721011,1736751038271,-616.51,9.898e-05,2]
[348721013,1736751038280,-500.0,9.898e-05,2]
[348721015,1736751038291,-500.0,9.898e-05,2]
[348721017,1736751038300,-476.52283152,9.898e-05,2]
[348721019,1736751038310,-1142.68,9.898e-05,2]
[348721021,1736751038320,-500.0,9.898e-05,2]
[348721023,1736751038330,-1850.28,9.898e-05,2]
[348721025,1736751038340,-500.0,9.898e-05,2]
[348721027,1736751038350,-1778.66,9.898e-05,2]
[348721029,1736751038360,-1983.38,9.898e-05,2]
[348721031,1736751038369,-500.0,9.898e-05,2]
[348721033,1736751038379,-493.0792018,9.898e-05,2]
[348721035,1736751038388,-500.0,9.898e-05,2]
[348721037,1736751038401,-862.57,9.898e-05,2]
[348721040,1736751038411,-500.0,9.898e-05,2]
[348721043,1736751038420,-501.99336724,9.898e-05,2]
[348721046,1736751038430,-228.11597967,9.898e-05,2]
[348721049,1736751038442,-500.0,9.898e-05,2]
[348721052,1736751038453,-302.86800702,9.898e-05,2]
[348721055,1736751038463,-500.0,9.898e-05,2]
[348721057,1736751038475,-505.61974463,9.898e-05,2]
[348721059,1736751038485,-504.01781334,9.898e-05,2]
[348721061,1736751038495,-500.0,9.898e-05,2]
[348721063,1736751038504,-620.07,9.898e-05,2]
[348721065,1736751038518,-799.67,9.898e-05,2]
[348721067,1736751038527,-505.41338267,9.898e-05,2]
[348721069,1736751038536,-500.0,9.898e-05,2]
[348721071,1736751038545,-503.67419616,9.898e-05,2]
[348721073,1736751038557,-507.65558636,9.898e-05,2]
[348721075,1736751038569,-500.0,9.898e-05,2]
[348721077,1736751038579,-533.26923189,9.898e-05,2]
[348721078,1736751038588,-500.0,9.898e-05,2]
[348721080,1736751038597,-500.0,9.898e-05,2]
[348721082,1736751038607,-500.0,9.898e-05,2]
[348721084,1736751038616,-500.0,9.898e-05,2]
[348721086,1736751038625,-503.31675182,9.898e-05,2]
[348721088,1736751038635,-502.82437368,9.898e-05,2]
[348721091,1736751038644,-1238.66,9.898e-05,2]
[348721092,1736751038653,-500.0,9.898e-05,2]
[348721095,1736751038663,-508.23223547,9.898e-05,2]
[348721096,1736751038672,-548.99593088,9.898e-05,2]
[348721097,1736751038681,-500.0,9.898e-05,2]
[348721098,1736751038690,-500.0,9.898e-05,2]
[348721099,1736751038700,-500.0,9.898e-05,2]
[348721100,1736751038709,-503.96241335,9.898e-05,2]
[348721101,1736751038718,-500.0,9.898e-05,2]
[348721120,1736751038930,-500.0,9.898e-05,2]
[348721123,1736751038946,-500.0,9.898e-05,2]
[348721125,1736751038955,-500.0,9.898e-05,2]
[348721127,1736751038964,-500.0,9.898e-05,2]
[348721129,1736751038974,-500.0,9.898e-05,2]
[348721131,1736751038983,-504.70464923,9.898e-05,2]
[348721133,1736751038992,-1541.41,9.898e-05,2]
[348721135,1736751039001,-500.0,9.898e-05,2]
[348721137,1736751039012,-500.0,9.898e-05,2]
[348721139,1736751039021,-500.0,9.898e-05,2]
[348721141,1736751039030,-626.19,9.898e-05,2]
[348721143,1736751039039,-503.72556544,9.898e-05,2]
[348721145,1736751039048,-600.9562359,9.899e-05,2]
[348721147,1736751039057,-500.0,9.899e-05,2]
[348721149,1736751039066,-503.86855183,9.899e-05,2]
[348721151,1736751039075,-500.0,9.899e-05,2]
[348721153,1736751039084,-500.0,9.899e-05,2]
[348721155,1736751039093,-500.0,9.899e-05,2]
[348721157,1736751039102,-513.72447128,9.899e-05,2]
[348721159,1736751039111,-500.0,9.899e-05,2]
[348721161,1736751039120,-500.0,9.899e-05,2]
[348721162,1736751039129,-500.0,9.899e-05,2]
[348721164,1736751039138,-500.0,9.899e-05,2]
[348721166,1736751039147,-507.50259067,9.899e-05,2]
[348721168,1736751039156,-500.0,9.899e-05,2]
[348721171,1736751039166,-500.0,9.899e-05,2]
[348721173,1736751039176,-500.0,9.899e-05,2]
[348721174,1736751039185,-501.6916105,9.899e-05,2]
[348721176,1736751039194,-500.0,9.899e-05,2]
[348721178,1736751039204,-500.0,9.899e-05,2]
[348721180,1736751039213,-500.0,9.899e-05,2]
[348721182,1736751039223,-500.0,9.899e-05,2]
[348721184,1736751039233,-500.0,9.899e-05,2]
[348721186,1736751039242,-500.0,9.899e-05,2]
[348721188,1736751039252,-505.40914652,9.899e-05,2]
[348721190,1736751039265,-500.0,9.899e-05,2]
[348721192,1736751039277,-500.0,9.899e-05,2]
[348721194,1736751039286,-502.7828665,9.899e-05,2]
[348721196,1736751039296,-500.0,9.899e-05,2]
[348721198,1736751039305,-500.0,9.899e-05,2]
[348721201,1736751039316,-500.0,9.899e-05,2]
[348721203,1736751039325,-500.0,9.899e-05,2]
[348721205,1736751039335,-500.0,9.899e-05,2]
[348721207,1736751039344,-231.30913473,9.899e-05,2]
[348721209,1736751039353,-504.48393882,9.899e-05,2]
[348721210,1736751039363,-500.0,9.899e-05,2]
[348721212,1736751039372,-500.0,9.899e-05,2]
[348721215,1736751039383,-500.0,9.899e-05,2]
[348721216,1736751039396,-500.0,9.899e-05,2]
[348721218,1736751039406,-500.0,9.899e-05,2]
[348721220,1736751039415,-498.85152419,9.899e-05,2]
[348721222,1736751039424,-500.0,9.899e-05,2]
[348721224,1736751039434,-500.0,9.899e-05,2]
[348721226,1736751039443,-500.0,9.899e-05,2]
[348721228,1736751039453,-500.0,9.899e-05,2]
[348721230,1736751039463,-500.0,9.899e-05,2]
[348721232,1736751039472,-500.0,9.899e-05,2]
[348721234,1736751039482,-500.0,9.899e-05,2]
[348721236,1736751039491,-500.0,9.899e-05,2]
[348721238,1736751039500,-500.56536831,9.899e-05,2]
[348721240,1736751039514,-500.0,9.899e-05,2]
[348721242,1736751039523,-500.41911442,9.899e-05,2]
[348721245,1736751039533,-500.0,9.899e-05,2]
[348721246,1736751039542,-500.0,9.899e-05,2]
[348721248,1736751039551,-523.45,9.899e-05,2]
[348721250,1736751039560,-500.0,9.899e-05,2]
[348721253,1736751039570,-501.87226658,9.899e-05,2]
[348721255,1736751039580,-500.0,9.899e-05,2]
[348721257,1736751039588,-500.0,9.899e-05,2]
[348721259,1736751039597,-500.0,9.899e-05,2]
[348721261,1736751039607,-500.0,9.899e-05,2]
[348721263,1736751039616,-500.0,9.899e-05,2]
[348721265,1736751039625,-500.0,9.899e-05,2]
[348721267,1736751039634,-500.0,9.899e-05,2]
[348721269,1736751039643,-500.0,9.899e-05,2]
[348721270,1736751039652,-500.0,9.899e-05,2]
[348721272,1736751039661,-500.0,9.899e-05,2]
[348721274,1736751039670,-502.75139085,9.899e-05,2]
[348721276,1736751039679,-500.0,9.899e-05,2]
[348721278,1736751039688,-501.74479011,9.899e-05,2]
[348721280,1736751039697,-500.0,9.899e-05,2]
[348721282,1736751039706,-503.81734584,9.899e-05,2]
[348721284,1736751039715,-500.0,9.899e-05,2]
[348721286,1736751039725,-500.0,9.899e-05,2]
[348721288,1736751039734,-507.68705644,9.899e-05,2]
[348721291,1736751039743,-505.17729436,9.899e-05,2]
[348721293,1736751039752,-500.0,9.899e-05,2]
[348721295,1736751039763,-500.0,9.899e-05,2]
[348721297,1736751039772,-503.9721402,9.899e-05,2]
[348721299,1736751039781,-502.84024744,9.899e-05,2]
[348721301,1736751039790,-500.0,9.899e-05,2]
[348721303,1736751039800,-500.0,9.899e-05,2]
[348721306,1736751039809,-459.50789066,9.899e-05,2]
[348721308,1736751039818,-504.01152674,9.899e-05,2]
[348721311,1736751039827,-500.0,9.899e-05,2]
[348721313,1736751039837,-500.0,9.899e-05,2]
[348721316,1736751039846,-500.0,9.899e-05,2]
[348721318,1736751039855,-626.72443006,9.899e-05,2]
[348721320,1736751039864,-500.0,9.899e-05,2]
[348721322,1736751039874,-500.0,9.899e-05,2]
[348721324,1736751039883,-500.0,9.899e-05,2]
[348721326,1736751039892,-202.79248963,9.899e-05,2]
[348721328,1736751039902,-506.2553554,9.899e-05,2]
[348721330,1736751039910,-500.0,9.899e-05,2]
[348721332,1736751039919,-500.0,9.899e-05,2]
[348721334,1736751039928,-500.0,9.899e-05,2]
[348721336,1736751039937,-500.0,9.899e-05,2]
[348721338,1736751039946,-503.34847692,9.899e-05,2]
[348721340,1736751039955,-502.55511124,9.899e-05,2]
[348721342,1736751039963,-500.0,9.899e-05,2]
[348721344,1736751039972,-500.0,9.899e-05,2]
[348721346,1736751039980,-502.18317858,9.899e-05,2]
[348721348,1736751039990,-500.0,9.899e-05,2]
[348721350,1736751039999,-501.72105384,9.899e-05,2]
[348721351,1736751040008,-500.0,9.899e-05,2]
[348721353,1736751040020,-500.88488305,9.899e-05,2]
[348721355,1736751040029,-584.86505745,9.899e-05,2]
[348721357,1736751040037,-506.31459849,9.899e-05,2]
[348721359,1736751040046,-502.46430184,9.899e-05,2]
[348721361,1736751040055,-501.62509503,9.899e-05,2]
[348721363,1736751040064,-500.0,9.899e-05,2]
[348721365,1736751040073,-500.0,9.899e-05,2]
[348721367,1736751040082,-501.30072302,9.899e-05,2]
[348721369,1736751040091,-500.0,9.899e-05,2]
[348721371,1736751040100,-507.62629331,9.899e-05,2]
[348721373,1736751040110,-500.36174633,9.899e-05,2]
[348721375,1736751040119,-507.87472195,9.899e-05,2]
[348721377,1736751040128,-501.649893,9.899e-05,2]
[348721379,1736751040137,-500.0,9.899e-05,2]
[348721381,1736751040147,-500.0,9.899e-05,2]
[348721383,1736751040157,-507.75124703,9.899e-05,2]
[348721385,1736751040167,-500.0,9.899e-05,2]
[348721387,1736751040178,-506.37810267,9.899e-05,2]
[348721389,1736751040188,-500.0,9.899e-05,2]
[348721391,1736751040198,-500.0,9.899e-05,2]
[348721393,1736751040208,-500.0,9.899e-05,2]
[348721395,1736751040219,-500.0,9.899e-05,2]
[348721397,1736751040228,-500.0,9.899e-05,2]
[348721399,1736751040238,-500.58955282,9.899e-05,2]
[348721401,1736751040247,-500.0,9.899e-05,2]
[348721403,1736751040257,-500.0,9.899e-05,2]
[348721405,1736751040269,-518.72,9.899e-05,2]
[348721407,1736751040279,-500.0,9.899e-05,2]
[348721408,1736751040288,-500.0,9.899e-05,2]
[348721410,1736751040298,-500.0,9.899e-05,2]
[348721412,1736751040308,-500.0,9.899e-05,2]
[348721414,1736751040318,-503.09637272,9.899e-05,2]
[348721416,1736751040327,-502.21994434,9.899e-05,2]
[348721418,1736751040337,-500.0,9.899e-05,2]
[348721420,1736751040346,-631.88,9.899e-05,2]
[348721422,1736751040356,-500.19399846,9.899e-05,2]
[348721424,1736751040365,-503.72050867,9.899e-05,2]
[348721426,1736751040374,-500.0,9.899e-05,2]
[348721428,1736751040384,-502.19778368,9.899e-05,2]
[348721430,1736751040393,-500.0,9.899e-05,2]
[348721432,1736751040406,-500.0,9.899e-05,2]
[348721434,1736751040415,-500.0,9.899e-05,2]
[348721436,1736751040425,-161.43996661,9.899e-05,2]
[348721438,1736751040433,-500.0,9.899e-05,2]
[348721440,1736751040443,-500.0,9.899e-05,2]
[348721442,1736751040452,-500.0,9.899e-05,2]
[348721444,1736751040461,-500.0,9.899e-05,2]
[348721446,1736751040470,-500.0,9.899e-05,2]
[348721448,1736751040479,-500.0,9.899e-05,2]
[348721450,1736751040507,-500.0,9.899e-05,2]
[348721452,1736751040522,-500.0,9.899e-05,2]
[348721453,1736751040531,-500.0,9.899e-05,2]
[348721455,1736751040541,-500.0,9.899e-05,2]
[348721457,1736751040550,-682.97,9.899e-05,2]
[348721459,1736751040559,-500.0,9.899e-05,2]
[348721461,1736751040569,-500.0,9.899e-05,2]
[348721463,1736751040579,-500.0,9.899e-05,2]
[348721465,1736751040588,-501.35240504,9.899e-05,2]
[348721467,1736751040598,-500.0,9.899e-05,2]
[348721469,1736751040608,-500.0,9.899e-05,2]
[348721471,1736751040618,-500.0,9.899e-05,2]
[348721474,1736751040627,-500.0,9.899e-05,2]
[348721475,1736751040637,-555.4,9.899e-05,2]
[348721477,1736751040646,-500.0,9.899e-05,2]
[348721479,1736751040656,-500.0,9.899e-05,2]
[348721481,1736751040666,-500.0,9.899e-05,2]
[348721483,1736751040675,-500.0,9.899e-05,2]
[348721485,1736751040684,-500.0,9.899e-05,2]
[348721487,1736751040694,-500.0,9.899e-05,2]
[348721490,1736751040704,-500.0,9.899e-05,2]
[348721492,1736751040718,-500.0,9.899e-05,2]
[348721494,1736751040727,-200.23888333,9.899e-05,2]
[348721496,1736751040737,-503.98958883,9.899e-05,2]
[348721498,1736751040747,-500.0,9.899e-05,2]
[348721500,1736751040756,-500.0,9.899e-05,2]
[348721502,1736751040768,-500.0,9.899e-05,2]
[348721504,1736751040778,-500.51321382,9.899e-05,2]
[348721506,1736751040787,-500.0,9.899e-05,2]
[348721508,1736751040797,-500.0,9.899e-05,2]
[348721510,1736751040807,-500.0,9.899e-05,2]
[348721512,1736751040816,-500.0,9.899e-05,2]
[348721514,1736751040825,-500.0,9.899e-05,2]
[348721516,1736751040835,-500.0,9.899e-05,2]
[348721518,1736751040846,-500.0,9.899e-05,2]
[348721520,1736751040855,-513.95,9.899e-05,2]
[348721522,1736751040865,-500.0,9.899e-05,2]
[348721524,1736751040874,-500.0,9.899e-05,2]
[348721526,1736751040884,-500.0,9.899e-05,2]
[348721528,1736751040894,-258.44111925,9.899e-05,2]
[348721530,1736751040904,-500.0,9.899e-05,2]
[348721532,1736751040914,-500.0,9.899e-05,2]
[348721534,1736751040924,-511.08038313,9.899e-05,2]
[348721536,1736751040934,-500.0,9.899e-05,2]
[348721538,1736751040944,-500.0,9.899e-05,2]
[348721540,1736751040953,-501.58732061,9.899e-05,2]
[348721542,1736751040963,-507.2915083,9.899e-05,2]
[348721544,1736751040972,-500.0,9.899e-05,2]
[348721546,1736751040981,-500.0,9.899e-05,2]
[348721548,1736751040990,-152.91488275,9.899e-05,2]
[348721550,1736751041000,-500.0,9.899e-05,2]
[348721552,1736751041010,-500.0,9.899e-05,2]
[348721553,1736751041022,-500.0,9.899e-05,2]
[348721556,1736751041032,-500.0,9.899e-05,2]
[348721558,1736751041041,-500.0,9.899e-05,2]
[348721561,1736751041060,-500.0,9.899e-05,2]
[348721563,1736751041072,-500.0,9.899e-05,2]
[348721565,1736751041085,-500.0,9.899e-05,2]
[348721568,1736751041096,-500.0,9.899e-05,2]
[348721570,1736751041107,-500.0,9.899e-05,2]
[348721572,1736751041119,-500.0,9.899e-05,2]
[348721574,1736751041132,-541.93,9.899e-05,2]
[348721576,1736751041145,-500.0,9.899e-05,2]
[348721577,1736751041157,-500.0,9.899e-05,2]
[348721578,1736751041170,-506.15971135,9.899e-05,2]
[348721579,1736751041182,-500.0,9.899e-05,2]
[348721580,1736751041194,-500.0,9.899e-05,2]
[348721581,1736751041207,-500.0,9.899e-05,2]
[348721582,1736751041218,-500.0,9.899e-05,2]
[348721584,1736751041229,-500.0,9.899e-05,2]
[348721585,1736751041239,-500.0,9.899e-05,2]
[348721588,1736751041250,-500.0,9.899e-05,2]
[348721590,1736751041262,-158.21150982,9.899e-05,2]
[348721592,1736751041276,-505.10532226,9.899e-05,2]
[348721594,1736751041288,-501.00671365,9.899e-05,2]
[348721597,1736751041300,-503.02517153,9.899e-05,2]
[348721599,1736751041312,-500.0,9.899e-05,2]
[348721601,1736751041323,-500.0,9.899e-05,2]
[348721603,1736751041336,-506.8608022,9.899e-05,2]
[348721606,1736751041348,-500.0,9.899e-05,2]
[348721608,1736751041360,-500.0,9.899e-05,2]
[348721610,1736751041371,-500.0,9.899e-05,2]
[348721613,1736751041384,-500.0,9.899e-05,2]
[348721615,1736751041400,-500.0,9.899e-05,2]
[348721617,1736751041413,-500.0,9.899e-05,2]
[348721620,1736751041426,-500.0,9.899e-05,2]
[348721622,1736751041438,-500.0,9.899e-05,2]
[348721624,1736751041451,-531.70009737,9.899e-05,2]
[348721626,1736751041462,-385.32279791,9.899e-05,2]
[348721629,1736751041475,-500.0,9.899e-05,2]
[348721631,1736751041488,-602.31,9.899e-05,2]